[Event "*** SCC Grand Prix: Titled Tuesday Blitz"]
[Site "Chess.com"]
[Date "2020.07.07"]
[Round "2"]
[White "Manukyan_Artak"]
[Black "reniite"]
[Result "1-0"]
[WhiteElo "2352"]
[BlackElo "1900"]
[TimeControl "180+1"]
[EndTime "10:19:10 PDT"]
[Termination "Manukyan_Artak won by resignation"]

1. e4 {[%clk 0:03:00.9]} 1... e5 {[%clk 0:02:57.3]} 2. Nf3 {[%clk 0:03:00.4]}
2... Nf6 {[%clk 0:02:42.5]} 3. Nxe5 {[%clk 0:02:59.9]} 3... d6 {[%clk
0:02:42.1]} 4. Nf3 {[%clk 0:02:59.8]} 4... Nxe4 {[%clk 0:02:42.6]} 5. Nc3 {[%clk
0:03:00.7]} 5... Nxc3 {[%clk 0:02:42.1]} 6. dxc3 {[%clk 0:03:01.6]} 6... Be7
{[%clk 0:02:43]} 7. Be3 {[%clk 0:03:01.6]} 7... Nc6 {[%clk 0:02:38.3]} 8. Qd2
{[%clk 0:03:00.4]} 8... Be6 {[%clk 0:02:36.5]} 9. O-O-O {[%clk 0:02:59.8]} 9...
Ne5 {[%clk 0:02:20.1]} 10. Nd4 {[%clk 0:02:40.3]} 10... Bc4 {[%clk 0:02:08.3]}
11. f4 {[%clk 0:02:31]} 11... Bxf1 {[%clk 0:02:07.1]} 12. fxe5 {[%clk
0:02:27.9]} 12... Ba6 {[%clk 0:02:01.6]} 13. Nf5 {[%clk 0:02:19.3]} 13... dxe5
{[%clk 0:01:21.4]} 14. Nxg7+ {[%clk 0:02:16]} 14... Kf8 {[%clk 0:01:19.8]} 15.
Nf5 {[%clk 0:01:53]} 15... Qxd2+ {[%clk 0:01:16.9]} 16. Rxd2 {[%clk 0:01:52.5]}
16... h5 {[%clk 0:00:57.5]} 17. Rd7 {[%clk 0:01:21.1]} 17... Bd6 {[%clk
0:00:52.7]} 18. Rd1 {[%clk 0:00:59.7]} 18... Ke8 {[%clk 0:00:48.6]} 19. Nxd6+
{[%clk 0:00:58]} 19... Kxd7 {[%clk 0:00:47.3]} 20. Nxf7+ {[%clk 0:00:54.4]}
20... Ke6 {[%clk 0:00:46.7]} 21. Nxh8 {[%clk 0:00:52.8]} 21... Rxh8 {[%clk
0:00:47.6]} 22. b3 {[%clk 0:00:49]} 22... Rg8 {[%clk 0:00:46.3]} 23. g3 {[%clk
0:00:48.6]} 23... Be2 {[%clk 0:00:44.2]} 24. Re1 {[%clk 0:00:46.5]} 24... Bg4
{[%clk 0:00:43.4]} 25. Bf4 {[%clk 0:00:44.4]} 25... Rd8 {[%clk 0:00:41.6]} 26.
Rxe5+ {[%clk 0:00:40.4]} 26... Kd7 {[%clk 0:00:41.2]} 27. Rg5 {[%clk 0:00:26.8]}
27... c5 {[%clk 0:00:37.8]} 28. Rxc5 {[%clk 0:00:26.4]} 28... Re8 {[%clk
0:00:36.7]} 29. Rc7+ {[%clk 0:00:25.4]} 29... Kd8 {[%clk 0:00:36.5]} 30. Rxb7
{[%clk 0:00:24.6]} 30... Re1+ {[%clk 0:00:37.1]} 31. Kb2 {[%clk 0:00:24.3]}
31... Re2 {[%clk 0:00:37.3]} 32. Rxa7 {[%clk 0:00:20.1]} 32... Bf5 {[%clk
0:00:37.2]} 33. c4 {[%clk 0:00:19.2]} 33... Rxc2+ {[%clk 0:00:36.8]} 34. Ka3
{[%clk 0:00:19.4]} 34... Rxh2 {[%clk 0:00:36.4]} 35. Kb4 {[%clk 0:00:19.6]}
35... Bb1 {[%clk 0:00:34.6]} 36. a4 {[%clk 0:00:19.1]} 36... Rb2 {[%clk
0:00:34.7]} 37. Rb7 {[%clk 0:00:18.5]} 37... Ba2 {[%clk 0:00:34.8]} 38. Ka3
{[%clk 0:00:18.6]} 38... Rc2 {[%clk 0:00:33.1]} 39. a5 {[%clk 0:00:18.4]} 39...
Bb1 {[%clk 0:00:32]} 40. Kb4 {[%clk 0:00:16.4]} 40... Ra2 {[%clk 0:00:30.5]} 41.
Kb5 {[%clk 0:00:16.2]} 41... Bc2 {[%clk 0:00:29.3]} 42. b4 {[%clk 0:00:16.3]}
42... Ba4+ {[%clk 0:00:29]} 43. Kb6 {[%clk 0:00:16.5]} 43... Bc2 {[%clk
0:00:28.2]} 44. b5 {[%clk 0:00:16.6]} 44... Be4 {[%clk 0:00:28.3]} 45. Rg7
{[%clk 0:00:15.4]} 45... Bf3 {[%clk 0:00:21.7]} 46. a6 {[%clk 0:00:15.3]} 46...
Ra1 {[%clk 0:00:19.8]} 47. a7 {[%clk 0:00:14.7]} 47... Ra2 {[%clk 0:00:20]} 48.
c5 {[%clk 0:00:14.4]} 48... Ra3 {[%clk 0:00:17.1]} 49. c6 {[%clk 0:00:14.5]}
49... Be4 {[%clk 0:00:15.9]} 50. Rg8+ {[%clk 0:00:13.7]} 50... Ke7 {[%clk
0:00:16]} 51. a8=Q {[%clk 0:00:14.6]} 51... Rxa8 {[%clk 0:00:15.4]} 52. Rxa8
{[%clk 0:00:15.5]} 52... h4 {[%clk 0:00:15.7]} 53. gxh4 {[%clk 0:00:14.9]} 1-0

[Event "*** SCC Grand Prix: Titled Tuesday Blitz"]
[Site "Chess.com"]
[Date "2020.07.07"]
[Round "2"]
[White "wonderfultime"]
[Black "AleksanderHnydiuk"]
[Result "1-0"]
[WhiteElo "3010"]
[BlackElo "2596"]
[TimeControl "180+1"]
[EndTime "10:19:11 PDT"]
[Termination "wonderfultime won on time"]

1. d4 {[%clk 0:03:00.9]} 1... Nf6 {[%clk 0:02:59.4]} 2. Nf3 {[%clk 0:03:01.4]}
2... e6 {[%clk 0:02:59.4]} 3. Bf4 {[%clk 0:03:00]} 3... c5 {[%clk 0:02:56.8]} 4.
c3 {[%clk 0:03:00]} 4... Be7 {[%clk 0:02:54.5]} 5. e3 {[%clk 0:02:53.8]} 5... b6
{[%clk 0:02:52.4]} 6. Bd3 {[%clk 0:02:53.7]} 6... O-O {[%clk 0:02:50.9]} 7. O-O
{[%clk 0:02:52.5]} 7... Ba6 {[%clk 0:02:30.6]} 8. Bxa6 {[%clk 0:02:51.2]} 8...
Nxa6 {[%clk 0:02:31.5]} 9. Qd3 {[%clk 0:02:51.3]} 9... Qc8 {[%clk 0:02:28.2]}
10. Nbd2 {[%clk 0:02:51.1]} 10... Qb7 {[%clk 0:02:17.3]} 11. h3 {[%clk
0:02:49.2]} 11... Rac8 {[%clk 0:02:15]} 12. a3 {[%clk 0:02:45.7]} 12... Rfd8
{[%clk 0:02:14.2]} 13. b4 {[%clk 0:02:43.6]} 13... cxd4 {[%clk 0:02:06.3]} 14.
cxd4 {[%clk 0:02:42.8]} 14... Nc7 {[%clk 0:02:01.2]} 15. Rfc1 {[%clk 0:02:29.1]}
15... Ncd5 {[%clk 0:01:59.9]} 16. Be5 {[%clk 0:02:25.4]} 16... Rxc1+ {[%clk
0:01:55.2]} 17. Rxc1 {[%clk 0:02:24.9]} 17... Rc8 {[%clk 0:01:55.3]} 18. Rc4
{[%clk 0:02:20.1]} 18... d6 {[%clk 0:01:27.6]} 19. Bg3 {[%clk 0:02:17.3]} 19...
Rxc4 {[%clk 0:01:09.3]} 20. Qxc4 {[%clk 0:02:16]} 20... Qc7 {[%clk 0:01:08.8]}
21. Qa6 {[%clk 0:02:11.4]} 21... Nc3 {[%clk 0:01:02.2]} 22. Qd3 {[%clk 0:02:06]}
22... Qc6 {[%clk 0:00:53.2]} 23. Bh4 {[%clk 0:02:05.9]} 23... Kf8 {[%clk
0:00:48.2]} 24. Bxf6 {[%clk 0:02:04]} 24... Bxf6 {[%clk 0:00:49.1]} 25. Qxh7
{[%clk 0:01:55.1]} 25... Nb5 {[%clk 0:00:47.2]} 26. Qd3 {[%clk 0:01:53.9]} 26...
Qc1+ {[%clk 0:00:44.7]} 27. Kh2 {[%clk 0:01:54.1]} 27... Nxa3 {[%clk 0:00:43.5]}
28. Qa6 {[%clk 0:01:50.1]} 28... Nb1 {[%clk 0:00:31.7]} 29. Ne4 {[%clk
0:01:44.7]} 29... Qc2 {[%clk 0:00:17.7]} 30. Qb7 {[%clk 0:01:16.6]} 30... Bd8
{[%clk 0:00:10.3]} 31. d5 {[%clk 0:01:03.2]} 31... Qxe4 {[%clk 0:00:07.4]} 32.
Qd7 {[%clk 0:01:00]} 32... Bf6 {[%clk 0:00:03.8]} 33. Qc8+ {[%clk 0:01:00.4]}
33... Ke7 {[%clk 0:00:03.9]} 34. Qc7+ {[%clk 0:01:00.6]} 34... Ke8 {[%clk
0:00:04.1]} 35. Qc6+ {[%clk 0:01:00.1]} 35... Ke7 {[%clk 0:00:03.8]} 36. Qb7+
{[%clk 0:00:59.4]} 36... Ke8 {[%clk 0:00:03.7]} 37. Qa8+ {[%clk 0:00:59.5]}
37... Ke7 {[%clk 0:00:03.9]} 38. Qxa7+ {[%clk 0:01:00]} 38... Ke8 {[%clk
0:00:04.1]} 39. Qa8+ {[%clk 0:01:00.5]} 39... Ke7 {[%clk 0:00:04.3]} 40. Qb7+
{[%clk 0:01:01]} 40... Ke8 {[%clk 0:00:04.7]} 41. Qc6+ {[%clk 0:01:01.1]} 41...
Ke7 {[%clk 0:00:05]} 42. Qc7+ {[%clk 0:01:00.1]} 42... Ke8 {[%clk 0:00:05.2]}
43. Qc6+ {[%clk 0:00:44.6]} 43... Ke7 {[%clk 0:00:05.5]} 44. Qxb6 {[%clk
0:00:28.4]} 44... Qxd5 {[%clk 0:00:04.7]} 45. b5 {[%clk 0:00:29]} 45... Be5+
{[%clk 0:00:04.4]} 46. Nxe5 {[%clk 0:00:29.1]} 46... Qxe5+ {[%clk 0:00:05.3]}
47. f4 {[%clk 0:00:29.8]} 47... Qe4 {[%clk 0:00:03.8]} 48. Qc7+ {[%clk
0:00:29.4]} 48... Kf6 {[%clk 0:00:04]} 49. b6 {[%clk 0:00:29.9]} 49... Nd2
{[%clk 0:00:03]} 50. Qxd6 {[%clk 0:00:14.8]} 50... Nf1+ {[%clk 0:00:01.9]} 51.
Kg1 {[%clk 0:00:15.1]} 51... Nxe3 {[%clk 0:00:02.3]} 52. Qe5+ {[%clk 0:00:14]}
52... Qxe5 {[%clk 0:00:01.3]} 53. fxe5+ {[%clk 0:00:14.9]} 53... Kxe5 {[%clk
0:00:01.4]} 54. b7 {[%clk 0:00:15.8]} 1-0

[Event "*** SCC Grand Prix: Titled Tuesday Blitz"]
[Site "Chess.com"]
[Date "2020.07.07"]
[Round "2"]
[White "FLamps8"]
[Black "IMHansNiemann"]
[Result "0-1"]
[WhiteElo "2578"]
[BlackElo "2929"]
[TimeControl "180+1"]
[EndTime "10:19:14 PDT"]
[Termination "IMHansNiemann won on time"]

1. d4 {[%clk 0:02:59.9]} 1... g6 {[%clk 0:02:56.9]} 2. e4 {[%clk 0:02:59.3]}
2... Bg7 {[%clk 0:02:56.8]} 3. Nc3 {[%clk 0:02:59.5]} 3... d6 {[%clk 0:02:55.4]}
4. Be3 {[%clk 0:02:58.5]} 4... Nf6 {[%clk 0:02:55.3]} 5. Qd2 {[%clk 0:02:58.6]}
5... c6 {[%clk 0:02:55.3]} 6. f3 {[%clk 0:02:57.8]} 6... Nbd7 {[%clk 0:02:55.6]}
7. Bh6 {[%clk 0:02:56.7]} 7... Bxh6 {[%clk 0:02:54.9]} 8. Qxh6 {[%clk
0:02:56.7]} 8... b5 {[%clk 0:02:55.5]} 9. a4 {[%clk 0:02:37.8]} 9... b4 {[%clk
0:02:52.4]} 10. Nd1 {[%clk 0:02:38]} 10... e5 {[%clk 0:02:52.1]} 11. dxe5 {[%clk
0:02:34.2]} 11... Nxe5 {[%clk 0:02:47.4]} 12. Ne2 {[%clk 0:02:18.3]} 12... Qe7
{[%clk 0:02:42.9]} 13. Ne3 {[%clk 0:01:46.5]} 13... Bb7 {[%clk 0:02:34.8]} 14.
Nd4 {[%clk 0:01:20]} 14... O-O-O {[%clk 0:02:29.4]} 15. O-O-O {[%clk 0:01:12.1]}
15... Rhe8 {[%clk 0:02:21.6]} 16. Nc4 {[%clk 0:01:06.2]} 16... d5 {[%clk
0:02:12.1]} 17. Na5 {[%clk 0:00:52.6]} 17... dxe4 {[%clk 0:02:01.9]} 18. Nxb7
{[%clk 0:00:48.9]} 18... Kxb7 {[%clk 0:01:57]} 19. Be2 {[%clk 0:00:37.5]} 19...
exf3 {[%clk 0:01:46.4]} 20. Bxf3 {[%clk 0:00:36.9]} 20... Nxf3 {[%clk
0:01:35.5]} 21. Nxf3 {[%clk 0:00:37.8]} 21... Rxd1+ {[%clk 0:01:27.6]} 22. Rxd1
{[%clk 0:00:38.7]} 22... Qe3+ {[%clk 0:01:24.8]} 23. Qxe3 {[%clk 0:00:37.7]}
23... Rxe3 {[%clk 0:01:25.7]} 24. Rd4 {[%clk 0:00:34.4]} 24... Nd5 {[%clk
0:01:22]} 25. Kd2 {[%clk 0:00:34.3]} 25... Re7 {[%clk 0:01:21.4]} 26. c4 {[%clk
0:00:33]} 26... bxc3+ {[%clk 0:01:21.1]} 27. bxc3 {[%clk 0:00:33.3]} 27... f5
{[%clk 0:01:20.4]} 28. Rh4 {[%clk 0:00:22.4]} 28... Kc7 {[%clk 0:01:15.2]} 29.
Ng5 {[%clk 0:00:14.9]} 29... Nf6 {[%clk 0:01:15.3]} 30. Rc4 {[%clk 0:00:12.4]}
30... h6 {[%clk 0:01:13.7]} 31. Nf3 {[%clk 0:00:11.3]} 31... Kd6 {[%clk
0:01:13]} 32. Rd4+ {[%clk 0:00:11.1]} 32... Kc5 {[%clk 0:01:13.2]} 33. Rd8
{[%clk 0:00:10.8]} 33... Rd7+ {[%clk 0:01:06]} 34. Rxd7 {[%clk 0:00:10.7]} 34...
Nxd7 {[%clk 0:01:06.9]} 35. Nh4 {[%clk 0:00:10.3]} 35... Ne5 {[%clk 0:01:06.3]}
36. Ke3 {[%clk 0:00:07.9]} 36... Kd5 {[%clk 0:01:05.6]} 37. h3 {[%clk 0:00:04]}
37... a5 {[%clk 0:01:03.9]} 38. g3 {[%clk 0:00:02.7]} 38... c5 {[%clk 0:01:01]}
39. Ng2 {[%clk 0:00:02.4]} 39... g5 {[%clk 0:01:01.2]} 40. Kd2 {[%clk
0:00:02.1]} 40... Ke4 {[%clk 0:00:59.9]} 41. Ne3 {[%clk 0:00:02.1]} 41... f4
{[%clk 0:00:58.9]} 42. gxf4 {[%clk 0:00:02]} 42... gxf4 {[%clk 0:00:59.8]} 43.
Nf1 {[%clk 0:00:02.3]} 43... Nc4+ {[%clk 0:00:59.6]} 44. Ke2 {[%clk 0:00:02.7]}
44... f3+ {[%clk 0:00:55.9]} 45. Kf2 {[%clk 0:00:02.8]} 45... Kd3 {[%clk
0:00:56.5]} 46. Kxf3 {[%clk 0:00:02.8]} 46... Kxc3 {[%clk 0:00:57]} 47. Kg4
{[%clk 0:00:03.4]} 47... Nd2 {[%clk 0:00:55.3]} 48. Ne3 {[%clk 0:00:03]} 48...
Kd3 {[%clk 0:00:53.3]} 49. Nd5 {[%clk 0:00:02.8]} 49... Kd4 {[%clk 0:00:51.8]}
50. Nf4 {[%clk 0:00:01.6]} 50... c4 {[%clk 0:00:47.2]} 51. Kh5 {[%clk
0:00:01.9]} 51... c3 {[%clk 0:00:46.4]} 52. Kxh6 {[%clk 0:00:02]} 52... c2
{[%clk 0:00:46.6]} 53. Ne2+ {[%clk 0:00:02.5]} 53... Ke3 {[%clk 0:00:45.6]} 54.
Nc1 {[%clk 0:00:02.8]} 54... Ne4 {[%clk 0:00:42.6]} 55. Kg6 {[%clk 0:00:02.6]}
55... Kd2 {[%clk 0:00:37.8]} 56. Nb3+ {[%clk 0:00:02.6]} 56... Kc3 {[%clk
0:00:38.4]} 57. Nc1 {[%clk 0:00:02.3]} 57... Kb2 {[%clk 0:00:32.2]} 58. Nd3+
{[%clk 0:00:01.9]} 58... Kb1 {[%clk 0:00:32.6]} 59. h4 {[%clk 0:00:02]} 59...
Nc5 {[%clk 0:00:31.8]} 60. Nxc5 {[%clk 0:00:02.2]} 60... c1=Q {[%clk 0:00:31.9]}
61. Ne4 {[%clk 0:00:01.6]} 61... Qc2 {[%clk 0:00:30.6]} 62. Kf5 {[%clk
0:00:01.6]} 62... Qh2 {[%clk 0:00:29]} 0-1

[Event "*** SCC Grand Prix: Titled Tuesday Blitz"]
[Site "Chess.com"]
[Date "2020.07.07"]
[Round "2"]
[White "harlem4brew"]
[Black "Tsyhanchuk_Stanislav"]
[Result "0-1"]
[WhiteElo "2127"]
[BlackElo "2412"]
[TimeControl "180+1"]
[EndTime "10:19:14 PDT"]
[Termination "Tsyhanchuk_Stanislav won by checkmate"]

1. e4 {[%clk 0:02:59.8]} 1... c5 {[%clk 0:02:59.6]} 2. Nf3 {[%clk 0:02:59.5]}
2... Nc6 {[%clk 0:02:58.9]} 3. d4 {[%clk 0:02:59.3]} 3... cxd4 {[%clk
0:02:59.8]} 4. Nxd4 {[%clk 0:03:00.2]} 4... Qb6 {[%clk 0:02:57.5]} 5. Nb3 {[%clk
0:02:59.3]} 5... Nf6 {[%clk 0:02:57.3]} 6. Nc3 {[%clk 0:02:58.3]} 6... e6 {[%clk
0:02:57.1]} 7. Be3 {[%clk 0:02:56.9]} 7... Qc7 {[%clk 0:02:56.9]} 8. Nb5 {[%clk
0:02:56]} 8... Qb8 {[%clk 0:02:56.5]} 9. f3 {[%clk 0:02:53.2]} 9... a6 {[%clk
0:02:54.9]} 10. N5d4 {[%clk 0:02:50.7]} 10... b5 {[%clk 0:02:52]} 11. Nxc6
{[%clk 0:02:47.5]} 11... dxc6 {[%clk 0:02:52.9]} 12. c4 {[%clk 0:02:46.8]} 12...
Bb4+ {[%clk 0:02:50.6]} 13. Kf2 {[%clk 0:02:45.2]} 13... Be7 {[%clk 0:02:26.4]}
14. Na5 {[%clk 0:02:40.9]} 14... Qc7 {[%clk 0:02:24.5]} 15. Qe1 {[%clk 0:02:35]}
15... b4 {[%clk 0:02:21.8]} 16. Nb3 {[%clk 0:02:32.7]} 16... c5 {[%clk
0:02:22.1]} 17. g3 {[%clk 0:02:28.5]} 17... O-O {[%clk 0:02:21.6]} 18. Bg2
{[%clk 0:02:27.7]} 18... e5 {[%clk 0:02:19.5]} 19. Nc1 {[%clk 0:02:26]} 19... a5
{[%clk 0:02:17]} 20. b3 {[%clk 0:02:25.3]} 20... a4 {[%clk 0:02:17]} 21. Nd3
{[%clk 0:02:24.3]} 21... Be6 {[%clk 0:02:09.5]} 22. Qc1 {[%clk 0:02:22.2]} 22...
Rfd8 {[%clk 0:02:08.3]} 23. Rd1 {[%clk 0:02:20.9]} 23... h5 {[%clk 0:02:05.1]}
24. Qb2 {[%clk 0:02:20.1]} 24... Nd7 {[%clk 0:01:27.4]} 25. f4 {[%clk
0:02:15.9]} 25... f6 {[%clk 0:01:12.6]} 26. f5 {[%clk 0:02:13.7]} 26... Bf7
{[%clk 0:01:12.5]} 27. Ne1 {[%clk 0:02:04.6]} 27... Nb6 {[%clk 0:01:11.5]} 28.
Nc2 {[%clk 0:01:58.3]} 28... Bxc4 {[%clk 0:00:29.1]} 29. bxc4 {[%clk 0:01:52.4]}
29... Nxc4 {[%clk 0:00:30]} 30. Qc1 {[%clk 0:01:51.9]} 30... Rxd1 {[%clk
0:00:29.9]} 31. Qxd1 {[%clk 0:01:50.1]} 31... Nxe3 {[%clk 0:00:30.8]} 32. Nxe3
{[%clk 0:01:49.5]} 32... Rd8 {[%clk 0:00:28.4]} 33. Nd5 {[%clk 0:01:49.3]} 33...
Qa7 {[%clk 0:00:29.3]} 34. Qe2 {[%clk 0:01:40.3]} 34... c4+ {[%clk 0:00:26.8]}
35. Kf1 {[%clk 0:01:37.2]} 35... c3 {[%clk 0:00:26.7]} 36. Qc4 {[%clk
0:01:35.6]} 36... Kh8 {[%clk 0:00:24.3]} 37. Re1 {[%clk 0:01:29.9]} 37... Qd4
{[%clk 0:00:21.4]} 38. Qxd4 {[%clk 0:01:25.5]} 38... exd4 {[%clk 0:00:22.3]} 39.
Nxe7 {[%clk 0:01:24.8]} 39... d3 {[%clk 0:00:22.2]} 40. Nc6 {[%clk 0:01:06.1]}
40... d2 {[%clk 0:00:21.9]} 41. Nxd8 {[%clk 0:01:03.5]} 41... c2 {[%clk
0:00:21.9]} 42. Nf7+ {[%clk 0:00:57.9]} 42... Kg8 {[%clk 0:00:20.5]} 43. e5
{[%clk 0:00:48.9]} 43... dxe1=Q+ {[%clk 0:00:20.5]} 44. Kxe1 {[%clk 0:00:48.2]}
44... c1=Q+ {[%clk 0:00:21.4]} 45. Ke2 {[%clk 0:00:48.3]} 45... Kxf7 {[%clk
0:00:22.3]} 46. Bd5+ {[%clk 0:00:48]} 46... Ke7 {[%clk 0:00:22.4]} 47. exf6+
{[%clk 0:00:47.9]} 47... Kxf6 {[%clk 0:00:22.3]} 48. Be6 {[%clk 0:00:48.8]}
48... Qb2+ {[%clk 0:00:23.2]} 49. Kf3 {[%clk 0:00:48.5]} 49... b3 {[%clk
0:00:23.6]} 50. axb3 {[%clk 0:00:48.2]} 50... axb3 {[%clk 0:00:24.5]} 51. g4
{[%clk 0:00:49.1]} 51... Qc3+ {[%clk 0:00:25]} 52. Kf4 {[%clk 0:00:48.6]} 52...
Qd4+ {[%clk 0:00:23.2]} 53. Kf3 {[%clk 0:00:48.7]} 53... hxg4+ {[%clk
0:00:23.1]} 54. Kg3 {[%clk 0:00:48.7]} 54... b2 {[%clk 0:00:21.9]} 55. Ba2
{[%clk 0:00:47.2]} 55... Kxf5 {[%clk 0:00:16.4]} 56. Bb1+ {[%clk 0:00:46.4]}
56... Kg5 {[%clk 0:00:16]} 57. h4+ {[%clk 0:00:45.5]} 57... gxh3 {[%clk
0:00:14.7]} 58. Kxh3 {[%clk 0:00:46.4]} 58... Qe3+ {[%clk 0:00:13]} 59. Kg2
{[%clk 0:00:46.4]} 59... Kf4 {[%clk 0:00:13.9]} 60. Bc2 {[%clk 0:00:42.2]} 60...
Qg3+ {[%clk 0:00:12.3]} 61. Kf1 {[%clk 0:00:41.8]} 61... Ke3 {[%clk 0:00:13.2]}
62. Bd3 {[%clk 0:00:39.4]} 62... Qf2# {[%clk 0:00:14.1]} 0-1

[Event "*** SCC Grand Prix: Titled Tuesday Blitz"]
[Site "Chess.com"]
[Date "2020.07.07"]
[Round "2"]
[White "elohunter1999"]
[Black "IMUffeVinther-Schou"]
[Result "1/2-1/2"]
[WhiteElo "2449"]
[BlackElo "2258"]
[TimeControl "180+1"]
[EndTime "10:19:15 PDT"]
[Termination "Game drawn by repetition"]

1. e4 {[%clk 0:03:00.9]} 1... c5 {[%clk 0:02:59.3]} 2. Nf3 {[%clk 0:03:00.6]}
2... e6 {[%clk 0:02:59.1]} 3. d4 {[%clk 0:03:00.5]} 3... cxd4 {[%clk 0:02:59]}
4. Nxd4 {[%clk 0:03:01.4]} 4... a6 {[%clk 0:02:59.6]} 5. Bd3 {[%clk 0:03:01.3]}
5... b5 {[%clk 0:02:59.1]} 6. O-O {[%clk 0:02:29.7]} 6... Bb7 {[%clk 0:02:55.9]}
7. a4 {[%clk 0:02:29.5]} 7... b4 {[%clk 0:02:51.5]} 8. Nd2 {[%clk 0:02:28.1]}
8... Nc6 {[%clk 0:02:41.5]} 9. Nxc6 {[%clk 0:02:27.6]} 9... Bxc6 {[%clk
0:02:41.3]} 10. Qe2 {[%clk 0:02:15.7]} 10... Nf6 {[%clk 0:02:08.6]} 11. a5
{[%clk 0:02:07.1]} 11... Bc5 {[%clk 0:01:49.9]} 12. Nc4 {[%clk 0:02:01.7]} 12...
O-O {[%clk 0:01:36.6]} 13. Bg5 {[%clk 0:01:33.5]} 13... Be7 {[%clk 0:01:35.6]}
14. e5 {[%clk 0:01:20.2]} 14... Nd5 {[%clk 0:01:34.5]} 15. Bxe7 {[%clk
0:01:20.2]} 15... Qxe7 {[%clk 0:01:34.3]} 16. Qh5 {[%clk 0:01:19]} 16... g6
{[%clk 0:01:26]} 17. Qh6 {[%clk 0:01:19]} 17... f5 {[%clk 0:01:10.6]} 18. exf6
{[%clk 0:01:13.7]} 18... Qxf6 {[%clk 0:01:09.9]} 19. Rae1 {[%clk 0:01:11.4]}
19... Nf4 {[%clk 0:01:00.5]} 20. f3 {[%clk 0:00:43]} 20... Qd4+ {[%clk
0:00:51.4]} 21. Kh1 {[%clk 0:00:42.8]} 21... Nxd3 {[%clk 0:00:48.9]} 22. cxd3
{[%clk 0:00:42.9]} 22... Qxd3 {[%clk 0:00:47.9]} 23. Ne5 {[%clk 0:00:43.1]}
23... Qf5 {[%clk 0:00:42]} 24. Nxc6 {[%clk 0:00:39.2]} 24... dxc6 {[%clk
0:00:42.9]} 25. Qe3 {[%clk 0:00:36.4]} 25... Rfe8 {[%clk 0:00:39.9]} 26. Qb3
{[%clk 0:00:29]} 26... c5 {[%clk 0:00:35.1]} 27. Re4 {[%clk 0:00:27.9]} 27...
Qd5 {[%clk 0:00:32.3]} 28. Qe3 {[%clk 0:00:26]} 28... Rad8 {[%clk 0:00:28.4]}
29. Re1 {[%clk 0:00:26]} 29... Rd6 {[%clk 0:00:28]} 30. b3 {[%clk 0:00:25.8]}
30... Rc6 {[%clk 0:00:19.8]} 31. Rc4 {[%clk 0:00:24.1]} 31... e5 {[%clk
0:00:17.7]} 32. Rec1 {[%clk 0:00:21.7]} 32... Rec8 {[%clk 0:00:17]} 33. h3
{[%clk 0:00:22.2]} 33... Kg7 {[%clk 0:00:16.6]} 34. Re4 {[%clk 0:00:21]} 34...
Re8 {[%clk 0:00:15.1]} 35. Qe2 {[%clk 0:00:20.7]} 35... h6 {[%clk 0:00:13.6]}
36. f4 {[%clk 0:00:18.1]} 36... Qxb3 {[%clk 0:00:12]} 37. fxe5 {[%clk
0:00:17.3]} 37... c4 {[%clk 0:00:10.7]} 38. Rcxc4 {[%clk 0:00:16.3]} 38... Rxc4
{[%clk 0:00:09.7]} 39. Rxc4 {[%clk 0:00:16.7]} 39... Qb1+ {[%clk 0:00:07.6]} 40.
Kh2 {[%clk 0:00:16.8]} 40... Qf5 {[%clk 0:00:06.9]} 41. Rc7+ {[%clk 0:00:16.8]}
41... Kh8 {[%clk 0:00:05.9]} 42. Rc5 {[%clk 0:00:10.2]} 42... Qf4+ {[%clk
0:00:05.3]} 43. g3 {[%clk 0:00:10.7]} 43... Qd4 {[%clk 0:00:04.4]} 44. Qc4
{[%clk 0:00:07.1]} 44... Qd2+ {[%clk 0:00:03]} 45. Kg1 {[%clk 0:00:06.8]} 45...
Rf8 {[%clk 0:00:02.8]} 46. Rc8 {[%clk 0:00:05.2]} 46... Qf2+ {[%clk 0:00:02.4]}
47. Kh1 {[%clk 0:00:05.3]} 47... Qe1+ {[%clk 0:00:02.9]} 48. Kg2 {[%clk
0:00:04.8]} 48... Qf2+ {[%clk 0:00:03.8]} 49. Kh1 {[%clk 0:00:05]} 49... Qe1+
{[%clk 0:00:04.5]} 50. Kg2 {[%clk 0:00:05.4]} 50... Qf2+ {[%clk 0:00:05.2]} 51.
Kh1 {[%clk 0:00:05.8]} 1/2-1/2